bitfinex/quotes_BTCUSD_20250602
["timestamp","ask_amount","ask_price","bid_price","bid_amount"]
[1748871604074,6.07245673,104610.0,104600.0,31.46899066]
[1748871604278,6.08139287,104610.0,104600.0,31.46899066]
[1748871604486,5.97994551,104610.0,104600.0,31.46899066]
[1748871604908,6.55474019,104610.0,104600.0,31.45942931]
[1748871605125,6.55474019,104610.0,104600.0,31.4469966]
[1748871605126,6.54580116,104610.0,104600.0,31.4469966]
[1748871605333,5.99448636,104610.0,104600.0,31.43743525]
[1748871605542,6.08599758,104610.0,104600.0,31.4278739]
[1748871605743,6.08799758,104610.0,104600.0,31.4278739]
[1748871605959,6.08799758,104610.0,104600.0,31.41831255]
[1748871606193,6.63831238,104610.0,104600.0,31.41831255]
[1748871606409,7.63329748,104610.0,104600.0,31.37528648]
[1748871606621,7.01365748,104610.0,104600.0,31.37528648]
[1748871606833,7.33725748,104610.0,104600.0,31.36572513]
[1748871607041,7.01365748,104610.0,104600.0,31.33225246]
[1748871607250,7.33721748,104610.0,104600.0,31.32268884]
[1748871607462,7.33421748,104610.0,104600.0,31.32268884]
[1748871607665,6.44334268,104610.0,104600.0,31.27965255]
[1748871607871,7.02653748,104610.0,104600.0,31.27965255]
[1748871608091,7.02653748,104610.0,104600.0,31.27008893]
[1748871608552,7.03548276,104610.0,104600.0,31.1964589]
[1748871608756,7.02653748,104610.0,104600.0,31.18689528]
[1748871609010,7.02653748,104610.0,104600.0,31.15342261]
[1748871609232,7.02653748,104610.0,104600.0,31.14385899]
[1748871609669,7.02653748,104610.0,104600.0,31.1008227]
[1748871609852,7.03547226,104610.0,104600.0,31.1008227]
[1748871610005,7.02653748,104610.0,104600.0,31.09125908]
[1748871610231,7.05370677,104610.0,104600.0,31.05778641]
[1748871610432,7.07983121,104610.0,104600.0,31.04822279]
[1748871610602,6.52851641,104610.0,104600.0,31.04822279]
[1748871610818,7.07983121,104610.0,104600.0,31.03865917]
[1748871611041,7.07383121,104610.0,104600.0,30.99275002]
[1748871611253,7.07383121,104610.0,104600.0,30.9831864]
[1748871611465,7.02753748,104610.0,104600.0,30.97462278]
[1748871611891,7.02753748,104610.0,104600.0,30.96505916]
[1748871612086,7.44081748,104610.0,104600.0,30.96505916]
[1748871612296,7.47092017,104610.0,104600.0,30.95549554]
[1748871612639,7.46304167,104610.0,104600.0,30.94716834]
[1748871612804,7.43587238,104610.0,104600.0,30.93760189]
[1748871613228,7.43587238,104610.0,104600.0,30.92803544]
[1748871613435,8.02328862,104610.0,104600.0,30.92803544]
[1748871613644,8.02328862,104610.0,104600.0,30.91846899]
[1748871613645,7.71087238,104610.0,104600.0,30.91846899]
[1748871613883,7.60435238,104610.0,104600.0,30.91846899]
[1748871614089,8.03635238,104610.0,104600.0,30.91846899]
[1748871614290,7.71980452,104610.0,104600.0,30.91846899]
[1748871614532,7.96218718,104610.0,104600.0,30.90890254]
[1748871614766,8.32166393,104610.0,104600.0,30.8909674]
[1748871614949,8.35671979,104610.0,104600.0,30.88140095]
[1748871615193,8.37495766,104610.0,104600.0,30.88140095]
[1748871615396,8.37495766,104610.0,104600.0,30.8718345]
[1748871615605,8.34883322,104610.0,104600.0,30.8718345]
[1748871615806,8.33558022,104610.0,104600.0,30.86226805]
[1748871616023,8.39042966,104610.0,104600.0,30.86226805]
[1748871616226,8.40866847,104610.0,104600.0,30.8527016]
[1748871616438,8.38149918,104610.0,104600.0,30.83902205]
[1748871616658,8.40866847,104610.0,104600.0,30.83902205]
[1748871616876,8.40866847,104610.0,104600.0,30.8294556]
[1748871617086,8.40866847,104610.0,104600.0,25.18575755]
[1748871617345,8.38149918,104610.0,104600.0,25.16022417]
[1748871617548,8.40866847,104610.0,104600.0,25.16022417]
[1748871617774,8.40401772,104610.0,104600.0,25.15065772]
[1748871618180,8.40401772,104610.0,104600.0,25.14109127]
[1748871618381,8.38577624,104610.0,104600.0,25.12829677]
[1748871618589,8.40401772,104610.0,104600.0,25.11872943]
[1748871618797,8.37684843,104610.0,104600.0,25.11872943]
[1748871619001,8.38577634,104610.0,104600.0,25.10916209]
[1748871619210,8.37684843,104610.0,104600.0,25.10916209]
[1748871619416,8.35965071,104610.0,104600.0,25.08984657]
[1748871619613,4.30498599,104610.0,104600.0,20.65161473]
[1748871619820,4.30498599,104610.0,104600.0,13.94305445]
[1748871619821,8.58173292,104610.0,104600.0,13.94305445]
[1748871620031,3.48687945,104610.0,104600.0,8.61978726]
[1748871620268,3.38502515,104610.0,104600.0,1.74109394]
[1748871620464,0.56496583,104550.0,104540.0,0.07696378]
[1748871620674,4.91429424,104530.0,104520.0,0.07696378]
[1748871620873,5.8220974,104530.0,104520.0,0.07696378]
[1748871621093,5.98980203,104530.0,104520.0,0.07696378]
[1748871621290,6.09787718,104530.0,104520.0,0.07696378]
[1748871621768,7.03924035,104530.0,104520.0,0.07696378]
[1748871621981,6.48792555,104530.0,104520.0,0.07696378]
[1748871622191,7.14166035,104530.0,104520.0,0.07696378]
[1748871622394,7.41958035,104530.0,104520.0,0.07696378]
[1748871622602,7.43051415,104530.0,104520.0,0.07996378]
[1748871622803,6.87919938,104530.0,104520.0,0.07996378]
[1748871622973,7.42158035,104530.0,104520.0,0.07996378]
[1748871623186,6.86902555,104530.0,104520.0,0.07996378]
[1748871623566,6.87102555,104530.0,104520.0,0.07996378]
[1748871623976,6.87002555,104530.0,104520.0,0.07696378]
[1748871624170,0.21056596,104480.0,104470.0,0.07696378]
[1748871624369,0.21950076,104480.0,104470.0,0.60048378]
[1748871624579,0.35846642,104480.0,104470.0,0.60048378]
[1748871624811,0.34953159,104480.0,104470.0,1.21549858]
[1748871625031,0.29460234,104480.0,104470.0,1.21549858]
[1748871625236,0.29560234,104480.0,104470.0,1.21549858]
[1748871625459,0.30453618,104480.0,104470.0,1.21598339]
[1748871625661,0.30453621,104480.0,104470.0,1.21598339]
[1748871625873,0.29560234,104480.0,104470.0,0.66466859]
[1748871626019,0.29560234,104480.0,104470.0,1.21598339]
[1748871626227,0.29560234,104480.0,104470.0,0.66766859]
[1748871626596,0.29560234,104480.0,104470.0,1.54650339]
[1748871626754,0.30453522,104480.0,104470.0,0.48050481]
[1748871627112,0.29560234,104480.0,104470.0,0.91818481]
[1748871627313,0.30453597,104480.0,104470.0,0.91818481]
[1748871627502,0.30453482,104480.0,104470.0,0.91818481]
[1748871627734,0.29560234,104480.0,104470.0,0.59070481]
[1748871627976,0.29560234,104480.0,104470.0,0.91806481]
[1748871628186,0.30453478,104480.0,104470.0,0.48050481]
[1748871628397,0.39145664,104480.0,104470.0,0.59074481]
[1748871628618,0.39145664,104480.0,104470.0,0.91798481]
[1748871628842,0.40038885,104480.0,104470.0,0.48050481]
[1748871629068,0.39145664,104480.0,104470.0,0.91790481]
[1748871629533,0.19864222,104480.0,104470.0,1.46921961]
[1748871629939,0.20756985,104480.0,104470.0,1.46897961]
[1748871630143,0.19864222,104480.0,104470.0,1.46897961]
[1748871630399,0.19864222,104480.0,104470.0,1.14205961]
[1748871630594,0.59043325,104480.0,104470.0,0.48050481]
[1748871630798,0.58151222,104480.0,104470.0,1.14205961]
[1748871631050,0.61025922,104480.0,104470.0,1.14205961]
[1748871631656,0.6191652,104480.0,104470.0,1.14205961]
[1748871631858,0.61025922,104480.0,104470.0,1.14205961]
[1748871632061,0.61916517,104480.0,104470.0,1.14205961]
[1748871632268,0.61025922,104480.0,104470.0,0.59074481]
[1748871632683,5.71025922,104480.0,104470.0,1.14205961]
[1748871633086,0.61025922,104480.0,104470.0,1.14205961]
[1748871633291,0.61025922,104480.0,104470.0,0.59074481]
[1748871633496,0.6192353,104480.0,104470.0,1.14205961]
[1748871634582,0.6192353,104480.0,104470.0,1.13905961]
[1748871634804,0.6182353,104480.0,104470.0,1.13905961]
[1748871635022,0.62821108,104480.0,104470.0,1.14005961]
[1748871635237,0.6192353,104480.0,104470.0,1.14005961]
[1748871635476,0.62821108,104480.0,104470.0,1.14005961]
[1748871635706,0.6192353,104480.0,104470.0,1.14005961]
[1748871635956,0.6192353,104480.0,104470.0,1.46685961]
[1748871636193,0.6192353,104480.0,104470.0,2.01817441]
[1748871636194,0.523381,104480.0,104470.0,2.01817441]
[1748871636442,0.19142209,104490.0,104470.0,2.40612941]
[1748871636667,0.19142209,104490.0,104480.0,1.1656296]
[1748871636905,0.20098139,104510.0,104500.0,0.00956928]
[1748871637133,0.21050551,104510.0,104500.0,1.9413696]
[1748871637366,0.21050551,104510.0,104500.0,1.3900548]
[1748871637839,0.59326551,104510.0,104500.0,1.48256602]
[1748871638064,0.59326551,104510.0,104500.0,1.3900548]
[1748871638764,0.59426551,104510.0,104500.0,1.3940548]
[1748871638987,0.59426551,104510.0,104500.0,1.3941748]
[1748871639453,0.59426551,104510.0,104500.0,1.3951748]
[1748871639678,0.59426551,104510.0,104500.0,0.9574148]
[1748871640162,0.59426551,104510.0,104500.0,1.3951748]
[1748871641329,0.59426551,104510.0,104500.0,1.39320147]
[1748871641821,0.69011981,104510.0,104500.0,0.17634]
[1748871642067,0.69011981,104510.0,104500.0,0.0661]
[1748871642294,5.74011981,104510.0,104500.0,0.52876]
[1748871642518,5.74011981,104510.0,104500.0,0.41852]
[1748871642741,5.75466066,104510.0,104500.0,0.52876]
[1748871642960,6.12586066,104510.0,104500.0,0.51296831]
[1748871643398,6.12586066,104510.0,104500.0,0.50339898]
[1748871643613,6.12586066,104510.0,104500.0,0.49382965]
[1748871644512,6.09366066,104510.0,104500.0,0.49382965]
[1748871644731,6.09466066,104510.0,104500.0,0.49582965]
[1748871645236,6.09566066,104510.0,104500.0,0.49582965]
[1748871645477,6.09466066,104510.0,104500.0,0.49382965]
[1748871645716,6.09466066,104510.0,104500.0,0.49482965]
[1748871645995,6.09366066,104510.0,104500.0,0.38458965]
[1748871646260,6.09666066,104510.0,104500.0,0.48526032]
[1748871646532,6.09666066,104510.0,104500.0,0.46635672]
[1748871646805,6.93956066,104510.0,104500.0,0.1104]
[1748871647013,5.27508666,104490.0,104480.0,0.41452]
[1748871647214,6.03786096,104490.0,104480.0,0.52392]
[1748871647417,6.42062096,104490.0,104480.0,0.52392]
[1748871648276,6.42162096,104490.0,104480.0,0.41552]
[1748871648477,6.42162096,104490.0,104480.0,0.52492]
[1748871648708,6.4305978,104490.0,104480.0,0.52492]
[1748871648921,6.42162096,104490.0,104480.0,0.52492]
[1748871649656,6.43059772,104490.0,104480.0,0.52492]
[1748871649880,6.42162096,104490.0,104480.0,0.52492]
[1748871650326,6.10367779,104490.0,104480.0,0.52492]
[1748871650555,6.42110096,104490.0,104480.0,0.52492]
[1748871651448,6.09470096,104490.0,104480.0,0.52492]
[1748871651637,6.42987775,104490.0,104480.0,0.52492]
[1748871651901,6.42090096,104490.0,104480.0,0.52492]
[1748871652126,6.45100096,104490.0,104480.0,0.52492]
[1748871652348,6.48270096,104490.0,104480.0,0.52492]
[1748871652557,6.48270096,104490.0,104480.0,0.41552]
[1748871652765,6.48370096,104490.0,104480.0,0.5153459]
[1748871652994,6.48370096,104490.0,104480.0,0.5057718]
[1748871653239,7.17267826,104490.0,104480.0,0.1104]
[1748871653441,0.87109521,104480.0,104470.0,0.10988481]
[1748871653652,6.01694951,104480.0,104470.0,0.10988481]
[1748871653867,6.40868735,104480.0,104470.0,0.10031071]
[1748871654080,6.73978735,104480.0,104470.0,0.10031071]
[1748871654292,6.73978758,104480.0,104470.0,0.09073661]
[1748871654533,1.68080951,104480.0,104470.0,0.09073661]
[1748871654737,6.38415036,104480.0,104470.0,0.09073661]
[1748871654952,6.39312838,104480.0,104470.0,0.09073661]
[1748871655594,7.04555036,104480.0,104470.0,0.08116251]
[1748871655844,7.09555036,104480.0,104470.0,0.08116251]
[1748871656057,7.10255036,104480.0,104470.0,0.07258652]
[1748871656259,5.56060627,104460.0,104450.0,0.41356]
[1748871656470,5.70606045,104460.0,104450.0,0.51376716]
[1748871656678,6.07984142,104460.0,104450.0,0.54446716]
[1748871657107,5.79151997,104460.0,104450.0,0.43506716]
[1748871657319,5.79152001,104460.0,104450.0,0.54450716]
[1748871657529,5.78254112,104460.0,104450.0,0.54450716]
[1748871657744,5.78354112,104460.0,104450.0,0.54450716]
[1748871658387,5.78354112,104460.0,104450.0,0.57720716]
[1748871658388,5.76900027,104460.0,104450.0,0.57720716]
[1748871658810,5.77897893,104460.0,104450.0,0.57720716]
[1748871659015,5.77000027,104460.0,104450.0,0.57720716]
[1748871659217,5.77897867,104460.0,104450.0,0.57720716]
[1748871659439,5.87070027,104460.0,104450.0,0.57720716]
[1748871659915,5.77000027,104460.0,104450.0,0.57720716]
[1748871660124,5.77897846,104460.0,104450.0,0.57720716]
[1748871660334,5.77000027,104460.0,104450.0,0.57720716]
[1748871660742,5.87070027,104460.0,104450.0,0.57720716]
[1748871660964,5.8796784,104460.0,104450.0,0.57720716]
[1748871661171,5.87070027,104460.0,104450.0,0.57720716]
[1748871661580,5.87967836,104460.0,104450.0,0.57720716]
[1748871661785,5.87070027,104460.0,104450.0,0.57720716]
[1748871661996,5.87070027,104460.0,104450.0,0.46776716]
[1748871662203,5.89421955,104460.0,104450.0,0.51380716]
[1748871662431,5.88524112,104460.0,104450.0,0.51380716]
[1748871662846,5.89421967,104460.0,104450.0,0.51380716]
[1748871663051,5.88524112,104460.0,104450.0,0.51380716]
[1748871663281,6.21016112,104460.0,104450.0,0.51380716]
[1748871664142,6.21016112,104460.0,104450.0,0.57700716]
[1748871664143,5.87967916,104460.0,104450.0,0.57700716]
[1748871664383,5.87967899,104460.0,104450.0,0.57700716]
[1748871664608,5.87070027,104460.0,104450.0,0.57700716]
[1748871665229,5.8796787,104460.0,104450.0,0.57700716]
[1748871665427,5.87967873,104460.0,104450.0,0.57700716]
[1748871665635,5.87967877,104460.0,104450.0,0.57700716]
[1748871665843,5.87070027,104460.0,104450.0,0.57700716]
[1748871666052,5.77000027,104460.0,104450.0,0.57700716]
[1748871666296,5.77897808,104460.0,104450.0,0.57700716]
[1748871666505,5.77000027,104460.0,104450.0,0.57700716]
[1748871666944,5.77897804,104460.0,104450.0,0.57700716]
[1748871667409,5.77000027,104460.0,104450.0,0.57700716]
[1748871667613,5.7789782,104460.0,104450.0,0.57700716]
[1748871667824,5.87070027,104460.0,104450.0,0.57700716]
[1748871668056,5.87070027,104460.0,104450.0,0.54660716]
[1748871668283,5.87967886,104460.0,104450.0,0.54660716]
[1748871668524,6.19562027,104460.0,104450.0,0.53726943]
[1748871668750,5.87070027,104460.0,104450.0,0.56746943]
[1748871669174,5.87967884,104460.0,104450.0,0.56746943]
[1748871669634,5.87070027,104460.0,104450.0,0.56746943]
[1748871669879,5.87967881,104460.0,104450.0,0.56746943]
[1748871670100,5.87967873,104460.0,104450.0,0.56746943]
[1748871670315,5.87967868,104460.0,104450.0,0.56746943]
[1748871670531,6.22524112,104460.0,104450.0,0.39502943]
[1748871670738,6.82524112,104460.0,104450.0,0.50446943]
[1748871670966,6.88684112,104460.0,104450.0,0.50446943]
[1748871671204,6.88684112,104460.0,104450.0,0.39502943]
[1748871671413,6.88584112,104460.0,104450.0,0.10000984]
[1748871671627,6.88584112,104460.0,104420.0,0.47832]
[1748871671628,0.31083377,104430.0,104420.0,0.47832]
[1748871671860,0.31083377,104430.0,104420.0,0.41376844]
[1748871671861,5.79618892,104430.0,104420.0,0.41376844]
[1748871672083,6.46618892,104430.0,104420.0,4.844e-05]
[1748871672321,6.84894892,104430.0,104420.0,4.844e-05]
[1748871673876,6.85094892,104430.0,104420.0,4.844e-05]
[1748871674717,6.87971592,104430.0,104420.0,4.844e-05]
[1748871675341,6.88171592,104430.0,104420.0,0.00104844]
[1748871675966,6.88111592,104430.0,104420.0,0.11052844]
[1748871676397,6.88111592,104430.0,104420.0,0.00104844]
[1748871676603,6.88111592,104430.0,104420.0,0.10900844]
[1748871676816,6.22675592,104430.0,104420.0,0.10900844]
[1748871677029,6.40686807,104430.0,104420.0,0.17270844]
[1748871677456,7.01470892,104430.0,104420.0,0.00104844]
[1748871677659,0.21565155,104420.0,104410.0,0.0306]
[1748871677869,0.20112997,104410.0,104400.0,1.0956]
[1748871678089,6.42674512,104410.0,104400.0,1.12886435]
[1748871678294,6.75674512,104410.0,104400.0,1.02090435]
[1748871678497,6.75674512,104410.0,104400.0,0.977792]
[1748871678498,7.25370512,104410.0,104400.0,0.977792]
[1748871678929,7.10950512,104410.0,104400.0,0.977792]
[1748871679132,7.10938512,104410.0,104400.0,0.977792]
[1748871679549,7.17058512,104410.0,104400.0,0.96821148]
[1748871679759,7.13938512,104410.0,104400.0,0.96821148]
[1748871679971,7.13938512,104410.0,104400.0,0.95863225]
[1748871680349,7.13938512,104410.0,104400.0,0.94905302]
[1748871680561,7.14338512,104410.0,104400.0,0.94905302]
[1748871680737,7.14638512,104410.0,104400.0,0.94047379]
[1748871680938,2.09638512,104410.0,104400.0,0.93089456]
[1748871681328,7.14638512,104410.0,104400.0,0.93089456]
[1748871681529,7.14638512,104410.0,104400.0,0.92131533]
[1748871681734,6.19198512,104410.0,104400.0,0.92131533]
[1748871681936,6.81606512,104410.0,104400.0,0.9117361]
[1748871682148,6.51606512,104410.0,104400.0,1.0196961]
[1748871682360,6.51606512,104410.0,104400.0,1.01011687]
[1748871682575,6.81606512,104410.0,104400.0,1.01011687]
[1748871682818,6.81706512,104410.0,104400.0,1.00053764]
[1748871683018,1.44298512,104410.0,104400.0,0.99095841]
[1748871683195,6.81694512,104410.0,104400.0,0.99095841]
[1748871683503,6.81694512,104410.0,104400.0,0.98137918]
[1748871683934,6.81694512,104410.0,104400.0,0.97179995]
[1748871684136,6.19298512,104410.0,104400.0,0.97179995]
[1748871684347,6.71572512,104410.0,104400.0,0.97179995]
[1748871684549,6.71672512,104410.0,104400.0,0.97179995]
[1748871685368,6.69228512,104410.0,104400.0,0.97179995]
[1748871685599,7.01732512,104410.0,104400.0,0.97179995]
[1748871685808,7.01732512,104410.0,104400.0,0.96222072]
[1748871687292,7.41306512,104410.0,104400.0,0.95267858]
[1748871687498,7.47506512,104410.0,104400.0,0.95267858]
[1748871687711,7.47506512,104410.0,104400.0,0.94309644]
[1748871687925,7.47506512,104410.0,104400.0,0.83509644]
[1748871688136,7.44184112,104410.0,104400.0,0.9335143]
[1748871688551,6.74090112,104410.0,104400.0,0.92393216]
[1748871688966,6.44086112,104410.0,104400.0,0.95433216]
[1748871689173,6.74086112,104410.0,104400.0,0.95433216]
[1748871689596,6.08732512,104410.0,104400.0,0.98753216]
[1748871689800,6.39746427,104410.0,104400.0,0.98753216]
[1748871690010,6.69746427,104410.0,104400.0,0.92393216]
[1748871690213,6.71200512,104410.0,104400.0,0.92393216]
[1748871690424,7.01200512,104410.0,104400.0,0.92393216]
[1748871691011,7.01200512,104410.0,104400.0,0.81593216]
[1748871691242,7.01200512,104410.0,104400.0,0.92393216]
[1748871691653,7.11892512,104410.0,104400.0,0.80635002]
[1748871691855,7.44380512,104410.0,104400.0,0.80635002]
[1748871692061,7.44380512,104410.0,104400.0,0.79676788]
[1748871692269,7.41290512,104410.0,104400.0,0.79676788]
[1748871692472,7.41290512,104410.0,104400.0,0.78718492]
[1748871692648,7.41789986,104410.0,104400.0,0.78718492]
[1748871692876,7.44809986,104410.0,104400.0,0.77760196]
[1748871693297,7.44809986,104410.0,104400.0,0.768019]
[1748871693501,7.41789986,104410.0,104400.0,0.768019]
[1748871693704,7.41789986,104410.0,104400.0,0.75843604]
[1748871694115,7.41789986,104410.0,104400.0,0.74885308]
[1748871694503,7.48069986,104410.0,104400.0,0.73927012]
[1748871694943,7.41789986,104410.0,104400.0,0.72968716]
[1748871695375,0.6514475,104390.0,104380.0,0.107]
[1748871695583,5.7064479,104370.0,104360.0,0.0648]
[1748871695795,6.4267022,104370.0,104360.0,0.108]
[1748871696005,6.83763324,104370.0,104360.0,0.10804848]
[1748871696223,7.13755324,104370.0,104360.0,0.17284848]
[1748871696653,7.13743324,104370.0,104360.0,0.17284848]
[1748871696865,6.81323324,104370.0,104360.0,0.17284848]
[1748871697076,7.13751324,104370.0,104360.0,0.17284848]
[1748871697501,6.81523324,104370.0,104360.0,0.17284848]
[1748871697683,7.13959324,104370.0,104360.0,0.17284848]
[1748871698145,7.14159324,104370.0,104360.0,0.17384848]
[1748871698356,7.14159324,104370.0,104360.0,0.10904848]
[1748871698531,6.81723324,104370.0,104360.0,0.00104848]
[1748871698732,7.14163324,104370.0,104360.0,0.10904848]
[1748871699162,7.14147324,104370.0,104360.0,0.10904848]
[1748871699974,6.81723324,104370.0,104360.0,0.06594848]
[1748871700179,6.84135324,104370.0,104360.0,0.17398848]
[1748871702075,6.84095324,104370.0,104360.0,0.17398848]
[1748871702278,7.14095324,104370.0,104360.0,0.00104848]
[1748871702477,7.47095324,104370.0,104360.0,0.00104848]
[1748871703535,7.14723324,104370.0,104360.0,0.00104848]
[1748871703747,7.47075324,104370.0,104360.0,0.00104848]
[1748871703925,6.84075324,104370.0,104360.0,0.00104848]
[1748871704168,7.14075324,104370.0,104360.0,0.03264848]
[1748871704353,6.84075324,104370.0,104360.0,0.06404848]
[1748871705404,6.84071324,104370.0,104360.0,0.06404848]
[1748871705814,6.10199239,104370.0,104360.0,0.06404848]
[1748871706228,6.42539239,104370.0,104360.0,0.06404848]
[1748871706972,6.10199239,104370.0,104360.0,0.06404848]
[1748871707177,6.42555239,104370.0,104360.0,0.06404848]
[1748871707607,6.44009324,104370.0,104360.0,0.17152848]
[1748871707817,6.44009324,104370.0,104360.0,0.10852848]
[1748871708802,6.44009324,104370.0,104360.0,0.17352848]
[1748871709005,6.44009324,104370.0,104360.0,0.06604848]
[1748871709211,6.44009324,104370.0,104360.0,0.17352848]
[1748871709406,6.54079324,104370.0,104360.0,0.17352848]
[1748871710049,6.84079324,104370.0,104360.0,0.10852848]
[1748871710866,6.84079324,104370.0,104360.0,0.13882848]
[1748871711328,6.84111324,104370.0,104360.0,0.17122848]
[1748871711732,6.84111324,104370.0,104360.0,0.06374848]
[1748871711936,6.84111324,104370.0,104360.0,0.10852848]
[1748871713391,6.84111324,104370.0,104360.0,0.17292848]
[1748871714011,6.84051324,104370.0,104360.0,0.17292848]
[1748871714887,6.84051324,104370.0,104360.0,0.06544848]
[1748871715091,7.17051324,104370.0,104360.0,0.00104848]
[1748871715270,7.17550959,104370.0,104360.0,0.10852848]
[1748871715558,5.71606914,104350.0,104340.0,0.47492]
[1748871715792,1.08528344,104350.0,104340.0,0.58254554]
[1748871716011,1.08528344,104350.0,104340.0,0.47506554]
[1748871716012,1.46804344,104350.0,104340.0,0.47506554]
[1748871716264,1.46804344,104350.0,104340.0,0.58254554]
[1748871716265,6.51804344,104350.0,104340.0,0.58254554]
[1748871717177,6.51804344,104350.0,104340.0,0.47506554]
[1748871717408,6.51804344,104350.0,104340.0,0.58254554]
[1748871717615,6.81904344,104350.0,104340.0,0.52174554]
[1748871718013,6.84883444,104350.0,104340.0,0.52174554]
[1748871718217,6.84883444,104350.0,104340.0,0.47596554]
[1748871718416,6.82004344,104350.0,104340.0,0.58344554]
[1748871720587,6.82004344,104350.0,104340.0,0.10762554]
[1748871720823,7.15004344,104350.0,104340.0,0.00014554]
[1748871721292,7.45004344,104350.0,104340.0,0.00014554]
[1748871721509,5.27540955,104330.0,104320.0,0.23350255]
[1748871721795,6.09476385,104330.0,104320.0,0.23355104]
[1748871722008,6.81752385,104330.0,104320.0,0.06347104]
[1748871722213,6.49472385,104330.0,104320.0,0.12417104]
[1748871722446,6.402203,104330.0,104320.0,0.20113482]
[1748871722900,6.41674385,104330.0,104320.0,0.12417104]
[1748871723385,6.51744385,104330.0,104320.0,0.12417104]
[1748871723604,6.51844385,104330.0,104320.0,0.12417104]
[1748871723866,6.81844385,104330.0,104320.0,0.06347104]
[1748871724109,7.17900963,104330.0,104320.0,0.06347104]
[1748871724344,7.11920385,104330.0,104320.0,0.06347104]
[1748871724552,7.11920385,104330.0,104320.0,0.09377104]
[1748871724776,7.14796285,104330.0,104320.0,0.09377104]
[1748871724985,7.14796285,104330.0,104320.0,0.06347104]
[1748871725368,7.17852863,104330.0,104320.0,0.06347104]
[1748871725613,0.21092935,104300.0,104290.0,0.17182]
[1748871725809,6.0344445,104300.0,104290.0,0.06478541]
[1748871726031,6.4172045,104300.0,104290.0,0.07197215]
[1748871726168,6.4172045,104300.0,104290.0,0.06478541]
[1748871726778,6.43098122,104300.0,104290.0,0.06478541]
[1748871727026,6.43198122,104300.0,104290.0,0.06478541]
[1748871727180,6.10882122,104300.0,104290.0,0.06478541]
[1748871727386,6.43290122,104300.0,104290.0,0.06478541]
[1748871727615,6.44744207,104300.0,104290.0,0.06478541]
[1748871727816,6.44728207,104300.0,104290.0,0.06478541]
[1748871728054,6.54798207,104300.0,104290.0,0.06478541]
[1748871728270,6.54798207,104300.0,104290.0,0.17230541]
[1748871728501,6.54798207,104300.0,104290.0,0.17949202]
[1748871728702,6.54798207,104300.0,104290.0,0.17949201]
[1748871728931,6.54798207,104300.0,104290.0,0.17230541]
[1748871729107,6.54798207,104300.0,104290.0,0.17949218]
[1748871729355,6.54798207,104300.0,104290.0,0.17230541]
[1748871729542,7.04058207,104300.0,104290.0,0.17230541]
[1748871729722,7.04058207,104300.0,104290.0,0.13873552]
[1748871729925,6.54798207,104300.0,104290.0,0.02162413]
[1748871730241,6.54798207,104300.0,104290.0,0.00048541]
[1748871730454,5.60099004,104270.0,104260.0,0.0156742]
[1748871730707,6.03486519,104270.0,104260.0,0.01572269]
[1748871730937,6.41762519,104270.0,104260.0,0.0061313]
[1748871731194,6.41762519,104270.0,104260.0,0.10405991]
[1748871731480,6.41762519,104270.0,104250.0,0.07868378]
[1748871731481,6.03666019,104260.0,104250.0,0.00172]
[1748871731682,0.20149664,104220.0,104210.0,0.1514047]
[1748871731987,0.29735094,104220.0,104210.0,0.15155026]
[1748871732383,0.68011094,104220.0,104210.0,0.1491502]
[1748871732593,0.68011094,104220.0,104210.0,0.14915025]
[1748871732807,0.68011094,104220.0,104210.0,0.16296748]
[1748871733016,0.68011094,104220.0,104210.0,0.19296748]
[1748871733225,0.58525664,104220.0,104210.0,0.08304735]
[1748871733432,0.58525664,104220.0,104210.0,0.18341609]
[1748871734133,0.58525664,104220.0,104210.0,0.07585609]
[1748871734362,0.68111094,104220.0,104210.0,0.08304738]
[1748871734589,0.68111094,104220.0,104210.0,0.18341609]
[1748871734807,0.68211094,104220.0,104210.0,0.18341609]
[1748871735478,0.58625664,104220.0,104210.0,0.18341609]
[1748871736168,0.58625664,104220.0,104210.0,0.51436735]
[1748871736386,0.68211094,104220.0,104210.0,0.60504735]
[1748871736605,0.71056353,104220.0,104210.0,0.60496602]
[1748871736817,0.71056353,104220.0,104210.0,0.60496605]
[1748871737034,0.71056353,104220.0,104210.0,0.92145609]
[1748871737265,0.71056353,104220.0,104210.0,0.49740611]
[1748871737470,0.71056353,104220.0,104210.0,0.58809865]
[1748871737678,0.71056353,104220.0,104210.0,0.59520897]
[1748871737886,0.71056353,104220.0,104210.0,0.58809865]
[1748871738307,0.71056353,104220.0,104210.0,0.57854121]
[1748871738308,5.75956353,104220.0,104210.0,0.57854121]
[1748871738546,5.75856353,104220.0,104210.0,0.57854121]
[1748871738762,5.75856353,104220.0,104210.0,0.55188]
[1748871738763,5.75956353,104220.0,104210.0,0.55188]
[1748871738968,0.71056353,104220.0,104210.0,0.55188]
[1748871739385,0.71056353,104220.0,104210.0,0.54228256]
[1748871739606,0.70956353,104220.0,104210.0,0.53268512]
[1748871739841,0.71056353,104220.0,104210.0,0.53268512]
[1748871740051,0.71056353,104220.0,104210.0,0.52308768]
[1748871740257,0.70956353,104220.0,104210.0,0.52308768]
[1748871740474,5.76056353,104220.0,104210.0,0.51348901]
[1748871740691,5.25151598,104210.0,104200.0,0.03]
[1748871740910,6.02663113,104210.0,104200.0,0.02049474]
[1748871741132,6.70939113,104210.0,104200.0,0.02049474]
[1748871741357,6.80509113,104210.0,104200.0,0.01089607]
[1748871741573,5.90607616,104200.0,104190.0,0.49926072]
[1748871741785,5.90607616,104200.0,104190.0,0.48966205]
[1748871741786,0.95193046,104200.0,104190.0,0.48966205]
[1748871741993,6.38469046,104200.0,104190.0,0.48006338]
[1748871742205,6.38469046,104200.0,104190.0,0.44646803]
[1748871742692,6.38569046,104200.0,104190.0,0.40802032]
[1748871742913,6.08569046,104200.0,104190.0,0.39842165]
[1748871743121,6.08469046,104200.0,104190.0,0.29098165]
[1748871743338,6.40965046,104200.0,104190.0,0.39842165]
[1748871743775,6.08469046,104200.0,104190.0,0.39842165]
[1748871743977,6.05518961,104200.0,104190.0,0.43032165]
[1748871744197,5.73414961,104200.0,104190.0,0.39842165]
[1748871744820,5.73014961,104200.0,104190.0,0.39842165]
[1748871745031,5.73314961,104200.0,104190.0,0.39842165]
[1748871745249,6.04969046,104200.0,104190.0,0.39842165]
[1748871745454,6.38669046,104200.0,104190.0,0.38882298]
[1748871745868,6.38769046,104200.0,104190.0,0.37922431]
[1748871746075,6.38769046,104200.0,104190.0,0.27178431]
[1748871746293,6.71257046,104200.0,104190.0,0.36962564]
[1748871746697,6.71257046,104200.0,104190.0,0.36002697]
[1748871748395,6.38769046,104200.0,104190.0,0.36002697]
[1748871748839,6.08769046,104200.0,104190.0,0.36002697]
[1748871749045,6.41241046,104200.0,104190.0,0.39152697]
[1748871749264,6.07314961,104200.0,104190.0,0.42182697]
[1748871749475,0.68314961,104200.0,104190.0,0.74726697]
[1748871750761,0.68314961,104200.0,104190.0,0.75437894]
[1748871750971,0.68314961,104200.0,104190.0,0.75437904]
[1748871751187,0.68314961,104200.0,104190.0,0.74726697]
[1748871752658,0.68314961,104200.0,104190.0,0.74766697]
[1748871753287,0.68314961,104200.0,104190.0,0.75477886]